bitfinex/quotes_BTCUSD_20241014
["timestamp","ask_amount","ask_price","bid_price","bid_amount"]
[1728914586529,0.305537,65459.0,65453.0,0.15352847]
[1728914586773,0.40895618,65456.0,65454.0,0.23018668]
[1728914587010,0.310511,65465.0,65444.0,0.23018668]
[1728914587011,0.305532,65460.0,65456.0,0.001]
[1728914587257,0.56172818,65457.0,65456.0,0.001]
[1728914587518,0.40895618,65464.0,65454.0,0.0001001]
[1728914587760,0.152776,65455.0,65454.0,0.15362857]
[1728914588005,0.152776,65455.0,65454.0,0.0001001]
[1728914588517,0.157776,65455.0,65454.0,0.0001001]
[1728914588795,0.16660957,65455.0,65454.0,0.0001001]
[1728914589047,0.32013804,65455.0,65454.0,0.0001001]
[1728914589285,0.33437388,65455.0,65454.0,0.0001001]
[1728914589542,0.32213804,65455.0,65454.0,0.0001001]
[1728914589793,0.157802,65444.0,65443.0,0.0001001]
[1728914590067,0.56175818,65444.0,65443.0,0.0001001]
[1728914590306,0.2799,65455.0,65443.0,0.0001001]
[1728914590307,0.40895618,65450.0,65443.0,0.0001001]
[1728914590563,0.00383357,65452.0,65443.0,0.0001001]
[1728914590564,0.56175818,65444.0,65443.0,0.0001001]
[1728914590778,0.56675818,65444.0,65443.0,0.0001001]
[1728914592263,0.157807,65442.0,65441.0,0.0001001]
[1728914592754,0.42016904,65442.0,65441.0,0.0001001]
[1728914593227,0.43439934,65442.0,65441.0,0.0001001]
[1728914593453,0.56748465,65442.0,65441.0,0.0001001]
[1728914593692,0.56748465,65442.0,65441.0,0.0011001]
[1728914593693,0.72929165,65442.0,65441.0,0.0011001]
[1728914593952,0.72029165,65442.0,65441.0,0.0001001]
[1728914594183,0.73429165,65442.0,65441.0,0.0011001]
[1728914594424,0.73429165,65442.0,65441.0,0.001]
[1728914594682,1.10031365,65442.0,65441.0,0.001]
[1728914594914,1.03048965,65442.0,65441.0,0.001]
[1728914595147,0.89902247,65442.0,65441.0,0.001]
[1728914595387,0.74729165,65442.0,65441.0,0.002]
[1728914595632,0.83329165,65442.0,65441.0,0.001]
[1728914595864,0.83329165,65442.0,65440.0,0.001846]
[1728914595865,0.257809,65441.0,65440.0,0.001846]
[1728914597310,0.271809,65441.0,65440.0,0.002846]
[1728914597542,0.271809,65441.0,65440.0,0.001846]
[1728914597543,0.257809,65441.0,65440.0,0.001846]
[1728914598516,0.152809,65441.0,65440.0,0.001846]
[1728914598737,0.157809,65441.0,65440.0,0.001846]
[1728914598949,0.185809,65441.0,65440.0,0.002846]
[1728914599637,0.180809,65441.0,65440.0,0.002846]
[1728914599859,0.185809,65441.0,65440.0,0.002846]
[1728914601512,0.43933747,65441.0,65440.0,0.002846]
[1728914601966,0.285809,65441.0,65440.0,0.002846]
[1728914602430,0.285809,65441.0,65440.0,0.001846]
[1728914602951,0.26293171,65436.0,65430.0,0.23213278]
[1728914603182,0.41576371,65431.0,65430.0,0.0001001]
[1728914603417,0.67429218,65431.0,65430.0,0.0001001]
[1728914603916,0.152856,65421.0,65420.0,0.0001001]
[1728914604150,0.41578771,65421.0,65420.0,0.0001001]
[1728914605787,0.42878771,65421.0,65420.0,0.0001001]
[1728914606012,0.58731618,65421.0,65420.0,0.0001001]
[1728914606248,0.70131618,65421.0,65420.0,0.0001001]
[1728914606741,0.67431618,65421.0,65420.0,0.0001001]
[1728914606969,0.68831618,65421.0,65420.0,0.0001001]
[1728914607208,0.67431618,65421.0,65420.0,0.0001001]
[1728914607978,0.85654618,65421.0,65420.0,0.0001001]
[1728914608212,0.87054618,65421.0,65420.0,0.0001001]
[1728914608452,0.87054618,65421.0,65416.0,0.001646]
[1728914608453,0.257865,65417.0,65416.0,0.001646]
[1728914608697,0.152879,65411.0,65410.0,0.23018668]
[1728914608941,0.152895,65404.0,65403.0,0.1543397]
[1728914609162,0.41582671,65404.0,65403.0,0.1543397]
[1728914609391,0.1529,65402.0,65401.0,0.0001001]
[1728914609614,0.1524,65402.0,65401.0,0.0001001]
[1728914609871,0.30577,65409.0,65401.0,0.0001001]
[1728914609872,0.005,65415.0,65401.0,0.0001001]
[1728914610088,0.23018668,65411.0,65405.0,0.002]
[1728914610339,0.23018668,65411.0,65401.0,0.0001001]
[1728914610340,0.305763,65410.0,65401.0,0.0001001]
[1728914610557,0.1529,65402.0,65401.0,0.0001001]
[1728914610812,0.27593171,65404.0,65399.0,0.0001001]
[1728914610813,0.152905,65401.0,65399.0,0.0001001]
[1728914611055,0.152905,65401.0,65396.0,0.005]
[1728914611056,0.152906,65400.0,65396.0,0.23018668]
[1728914611295,0.013,65404.0,65397.0,0.23018668]
[1728914611522,0.023,65404.0,65397.0,0.15352847]
[1728914611768,0.01,65404.0,65401.0,0.00992]
[1728914611995,0.01,65404.0,65402.0,0.30642847]
[1728914612219,0.23018668,65410.0,65402.0,0.30642847]
[1728914612220,0.23018668,65410.0,65402.0,0.30642747]
[1728914612444,0.23018668,65410.0,65403.0,0.152897]
[1728914612676,0.23018668,65410.0,65401.0,0.00992]
[1728914612677,0.23018668,65410.0,65404.0,0.15352847]
[1728914612921,0.53591468,65418.0,65404.0,0.15352847]
[1728914612922,0.23018668,65418.0,65404.0,0.15352847]
[1728914613162,0.23018668,65411.0,65404.0,0.15352847]
[1728914613411,0.305703,65423.0,65404.0,0.15352847]
[1728914613412,0.774567,65431.0,65409.0,0.00992]
[1728914613639,0.23018668,65420.0,65414.0,0.00992]
[1728914613891,0.23018668,65420.0,65416.0,0.152867]
[1728914614111,0.23018668,65430.0,65417.0,0.15352847]
[1728914614417,0.23018668,65423.0,65417.0,0.15352847]
[1728914614636,0.38302268,65430.0,65417.0,0.15352847]
[1728914614859,0.23018668,65430.0,65417.0,0.15352847]
[1728914615078,0.305691,65426.0,65413.0,0.00481365]
[1728914615290,0.014,65418.0,65414.0,0.15834212]
[1728914615502,0.014,65418.0,65414.0,0.15352847]
[1728914615718,0.15285,65424.0,65414.0,0.15352847]
[1728914615925,0.23018668,65423.0,65414.0,0.15352847]
[1728914616146,0.23018668,65423.0,65415.0,0.00481365]
[1728914616365,0.23018668,65423.0,65416.0,0.00481365]
[1728914616564,0.000824,65423.0,65414.0,0.15352847]
[1728914616793,0.000824,65423.0,65415.0,0.00482056]
[1728914617079,0.000824,65423.0,65417.0,0.157825]
[1728914617080,0.005,65418.0,65417.0,0.157825]
[1728914617292,0.005,65418.0,65417.0,0.30532455]
[1728914617532,0.000824,65423.0,65422.0,0.177773]
[1728914617771,0.000824,65423.0,65422.0,0.45444426]
[1728914618504,0.000824,65423.0,65422.0,0.17948527]
[1728914618917,0.011824,65423.0,65422.0,0.16956527]
[1728914619122,0.000824,65423.0,65422.0,0.16956527]
[1728914619348,0.000824,65423.0,65422.0,0.15834903]
[1728914619552,0.001824,65423.0,65422.0,0.16034903]
[1728914619768,0.000824,65423.0,65422.0,0.15834903]
[1728914620198,0.001824,65423.0,65422.0,0.31320203]
[1728914620614,0.001824,65423.0,65422.0,0.33433827]
[1728914620842,0.002864,65423.0,65422.0,0.33733827]
[1728914621043,0.002864,65423.0,65422.0,0.34233827]
[1728914621285,0.001864,65423.0,65422.0,0.34705981]
[1728914621519,0.000864,65423.0,65422.0,0.34805981]
[1728914621751,0.001864,65423.0,65422.0,0.34033827]
[1728914622013,0.002864,65423.0,65422.0,0.34633827]
[1728914622252,0.001864,65423.0,65422.0,0.33733827]
[1728914622461,0.002864,65423.0,65422.0,0.32912685]
[1728914622705,0.002864,65423.0,65422.0,0.34736497]
[1728914622706,0.003864,65423.0,65422.0,0.34736497]
[1728914622913,0.001864,65423.0,65422.0,0.17259197]
[1728914623120,0.001864,65423.0,65422.0,0.16135385]
[1728914623363,0.002864,65423.0,65422.0,0.16835385]
[1728914623589,0.002864,65423.0,65422.0,0.01182538]
[1728914623792,0.154715,65423.0,65422.0,0.007]
[1728914624217,0.002864,65423.0,65422.0,0.009]
[1728914624429,0.155715,65423.0,65422.0,0.009]
[1728914624674,0.154715,65423.0,65422.0,0.002]
[1728914624899,0.152873,65414.0,65410.0,0.23018668]
[1728914625131,0.005864,65423.0,65413.0,0.305748]
[1728914625348,0.005864,65423.0,65410.0,0.24010668]
[1728914625349,0.005864,65423.0,65414.0,0.15835514]
[1728914625558,0.001864,65423.0,65415.0,0.00482667]
[1728914625809,0.005864,65423.0,65416.0,0.15835514]
[1728914626079,0.000864,65423.0,65416.0,0.15835514]
[1728914626321,0.000864,65423.0,65417.0,0.23018668]
[1728914626563,0.000864,65423.0,65421.0,0.00496]
[1728914626783,0.000864,65423.0,65422.0,0.15352847]
[1728914626990,0.002864,65423.0,65422.0,0.31120833]
[1728914627199,0.002864,65423.0,65422.0,0.30638147]
[1728914627410,0.002864,65423.0,65422.0,0.15352847]
[1728914628104,0.004864,65423.0,65422.0,0.15352847]
[1728914628334,0.002864,65423.0,65422.0,0.15352847]
[1728914628580,0.006864,65423.0,65422.0,0.15352847]
[1728914628816,0.000864,65423.0,65422.0,0.15352847]
[1728914629326,0.000864,65423.0,65422.0,0.59106004]
[1728914629577,0.000864,65423.0,65422.0,0.69174402]
[1728914629811,0.000864,65423.0,65422.0,0.64243231]
[1728914630053,0.000864,65423.0,65422.0,0.63243231]
[1728914630301,0.000864,65423.0,65422.0,0.63443231]
[1728914630799,0.000864,65423.0,65422.0,0.63243231]
[1728914631232,0.001864,65423.0,65422.0,0.64243231]
[1728914631434,0.001864,65423.0,65422.0,0.65047693]
[1728914631657,0.001864,65423.0,65422.0,0.64443231]
[1728914631871,0.001864,65423.0,65422.0,0.64243231]
[1728914632339,0.002864,65423.0,65422.0,0.65747644]
[1728914633260,0.002864,65423.0,65422.0,0.7294526]
[1728914633500,0.002864,65423.0,65422.0,0.64865143]
[1728914633764,0.002864,65423.0,65422.0,0.65906773]
[1728914634236,0.000864,65423.0,65422.0,0.65006773]
[1728914634469,0.001864,65423.0,65422.0,0.65206773]
[1728914634704,0.002864,65423.0,65422.0,0.65906773]
[1728914636366,0.002864,65423.0,65422.0,0.78206773]
[1728914636604,0.23018668,65442.0,65441.0,0.162729]
[1728914636837,0.23018668,65442.0,65441.0,0.16755156]
[1728914637060,0.23018668,65449.0,65446.0,0.00496]
[1728914637537,0.23018668,65449.0,65448.0,0.152793]
[1728914637540,0.000823,65452.0,65449.0,0.15279]
[1728914637769,0.000823,65452.0,65449.0,0.01473505]
[1728914638482,0.000823,65452.0,65449.0,0.16826352]
[1728914638717,0.000823,65452.0,65449.0,0.32105352]
[1728914639832,0.22604968,65460.0,65451.0,0.00992]
[1728914640048,0.22604968,65460.0,65452.0,0.15834352]
[1728914640297,0.29861885,65459.0,65453.0,0.00481505]
[1728914640541,0.31168668,65467.0,65441.0,0.01617752]
[1728914640542,0.26293171,65456.0,65448.0,0.00481505]
[1728914640786,0.305553,65455.0,65449.0,0.23018668]
[1728914641020,0.26293171,65456.0,65443.0,0.00481505]
[1728914641243,0.26293171,65456.0,65447.0,0.23018668]
[1728914641467,0.305526,65461.0,65447.0,0.23018668]
[1728914641468,0.152787,65451.0,65447.0,0.23018668]
[1728914641704,0.305537,65459.0,65451.0,0.001]
[1728914641959,0.23018668,65464.0,65452.0,0.15352847]
[1728914642464,0.23018668,65464.0,65451.0,0.001]
[1728914642705,0.305535,65459.0,65452.0,0.23018668]
[1728914642945,0.26293171,65462.0,65452.0,0.23018668]
[1728914642946,0.152777,65455.0,65452.0,0.23018668]
[1728914643173,0.46903447,65466.0,65452.0,0.23018668]
[1728914643174,0.152757,65464.0,65452.0,0.38371515]
[1728914643403,0.305502,65466.0,65444.0,0.57335018]
[1728914643404,0.23018668,65465.0,65453.0,0.15352847]
[1728914643638,0.152755,65464.0,65453.0,0.15352847]
[1728914643897,0.23018668,65465.0,65454.0,0.00481663]
[1728914644131,0.23018668,65465.0,65453.0,0.15352847]
[1728914644357,0.312512,65464.0,65453.0,0.15352847]
[1728914644588,0.152781,65453.0,65452.0,0.002]
[1728914644818,0.152781,65453.0,65448.0,0.23018668]
[1728914644819,0.152785,65452.0,65448.0,0.23018668]
[1728914645055,0.152771,65458.0,65454.0,0.001]
[1728914645279,0.01,65466.0,65454.0,0.001]
[1728914645280,0.23018668,65460.0,65454.0,0.001]
[1728914645502,0.312509,65465.0,65453.0,0.001]
[1728914645722,0.152775,65456.0,65453.0,0.002]
[1728914645981,0.152771,65458.0,65453.0,0.001]
[1728914646426,0.152775,65456.0,65454.0,0.001]
[1728914646657,0.152776,65455.0,65454.0,0.001]
[1728914648200,0.158776,65455.0,65454.0,0.002]
[1728914648445,0.006,65455.0,65454.0,0.002]
[1728914648674,0.006,65455.0,65454.0,0.001]
[1728914649190,0.006,65455.0,65454.0,0.30730747]
[1728914649651,0.013,65455.0,65454.0,0.30830747]
[1728914650355,0.013,65455.0,65454.0,0.31312438]
[1728914650580,0.013,65455.0,65454.0,0.15552847]
[1728914650814,0.165776,65455.0,65454.0,0.002]
[1728914651039,0.50800447,65455.0,65454.0,0.002]
[1728914651818,0.61740771,65455.0,65454.0,0.002]
[1728914652542,0.61040771,65455.0,65454.0,0.001]
[1728914653046,0.15279,65449.0,65448.0,0.23018668]
[1728914653054,0.152802,65444.0,65443.0,0.001648]
[1728914653315,0.15283,65432.0,65424.0,0.23018668]
[1728914653555,0.23153,65432.0,65424.0,0.23018668]
[1728914653817,0.0787,65432.0,65424.0,0.23018668]
[1728914654092,0.41577771,65425.0,65424.0,0.23018668]
[1728914654359,0.41577771,65425.0,65417.0,0.23183468]
[1728914654360,0.152863,65418.0,65417.0,0.23183468]
[1728914654626,0.41579471,65418.0,65417.0,0.23183468]
[1728914654876,0.56932318,65418.0,65417.0,0.001648]
[1728914656672,0.58232318,65418.0,65417.0,0.001648]
[1728914656912,0.59632318,65418.0,65417.0,0.001648]
[1728914658317,0.179863,65418.0,65417.0,0.001648]
[1728914659020,0.44279471,65418.0,65417.0,0.001648]
[1728914660035,0.59632318,65418.0,65417.0,0.001648]
[1728914660282,1.04835489,65418.0,65417.0,0.001648]
[1728914660578,1.60903989,65418.0,65417.0,0.001648]
[1728914660773,0.94925118,65418.0,65417.0,0.001648]
[1728914661030,0.44578971,65418.0,65417.0,0.001648]
[1728914661278,0.169858,65418.0,65417.0,0.001648]
[1728914661526,0.43278971,65418.0,65417.0,0.001648]
[1728914662013,0.155858,65418.0,65417.0,0.001648]
[1728914662257,0.017035,65418.0,65417.0,0.001648]
[1728914662503,0.031035,65418.0,65417.0,0.001648]
[1728914662741,0.031035,65418.0,65412.0,0.152876]
[1728914662742,0.01404,65418.0,65412.0,0.152876]
[1728914662958,4e-05,65418.0,65412.0,0.152876]
[1728914663201,4e-05,65418.0,65409.0,0.00992]
[1728914663447,0.152866,65417.0,65410.0,0.30640847]
[1728914663940,0.26293171,65415.0,65403.0,0.00992]
[1728914664181,0.26293171,65415.0,65407.0,0.23018668]
[1728914664430,0.30575,65413.0,65404.0,0.16344847]
[1728914664692,0.26293171,65415.0,65404.0,0.16344847]
[1728914664693,0.305745,65414.0,65404.0,0.16344847]
[1728914664926,0.152874,65413.0,65406.0,0.152891]
[1728914665407,0.152873,65414.0,65406.0,0.152889]
[1728914665640,0.152877,65412.0,65404.0,0.16344847]
[1728914665867,0.26293171,65415.0,65406.0,0.15289]
[1728914666104,0.26293171,65410.0,65395.0,0.00496]
[1728914666322,0.305757,65412.0,65393.0,0.53602668]
[1728914666323,0.41582671,65405.0,65402.0,0.23018668]
[1728914666548,0.26293171,65405.0,65396.0,0.46927547]
[1728914666783,0.152896,65404.0,65396.0,0.46927547]
[1728914667019,0.305769,65409.0,65396.0,0.46927547]
[1728914667259,0.305783,65406.0,65397.0,0.15291]
[1728914667504,0.33943171,65405.0,65397.0,0.15848847]
[1728914667739,0.305798,65403.0,65397.0,0.15848847]
[1728914667957,0.152905,65400.0,65397.0,0.15848847]
[1728914668377,0.305798,65403.0,65397.0,0.15848847]
[1728914668378,0.152903,65401.0,65397.0,0.15848847]
[1728914668611,0.152909,65398.0,65397.0,0.15848847]
[1728914668860,0.152908,65399.0,65397.0,0.15848847]
[1728914669108,0.152908,65399.0,65396.0,0.016168]
[1728914669109,0.152912,65397.0,65396.0,0.016168]
[1728914670084,0.152912,65397.0,65390.0,0.00496]
[1728914670085,0.003832,65396.0,65390.0,0.00496]
[1728914670314,0.152921,65394.0,65390.0,0.15848847]
[1728914670557,0.152922,65393.0,65390.0,0.15848847]
[1728914670813,0.305836,65395.0,65390.0,0.15848847]
[1728914671056,0.458754,65395.0,65390.0,0.31141647]
[1728914671293,0.458754,65395.0,65390.0,0.15848847]
[1728914671294,0.15292,65394.0,65390.0,0.15848847]
[1728914671776,0.152921,65393.0,65390.0,0.15848847]
[1728914672018,0.152922,65393.0,65390.0,0.15848847]
[1728914672505,0.001,65394.0,65390.0,0.15848847]
[1728914672741,0.152922,65393.0,65390.0,0.15848847]
[1728914672978,0.003832,65396.0,65392.0,0.152921]
[1728914673219,0.003832,65396.0,65391.0,0.305851]
[1728914673479,0.003832,65396.0,65393.0,0.152921]
[1728914673723,0.001,65393.0,65392.0,0.152922]
[1728914673964,0.001,65393.0,65390.0,0.15848847]
[1728914673965,0.003832,65396.0,65390.0,0.15848847]
[1728914674207,0.003832,65396.0,65391.0,0.152926]
[1728914674467,0.003832,65396.0,65392.0,0.152923]
[1728914674725,0.003832,65396.0,65395.0,0.162836]
[1728914674978,0.003832,65396.0,65395.0,0.31636447]
[1728914675701,0.003832,65396.0,65391.0,0.00992]
[1728914675998,0.003832,65396.0,65391.0,0.16344847]
[1728914676245,0.152923,65392.0,65391.0,0.16344847]
[1728914676486,0.152921,65393.0,65391.0,0.16344847]
[1728914676721,0.152923,65392.0,65391.0,0.16344847]
[1728914676962,0.152923,65392.0,65390.0,0.001648]
[1728914676963,0.53602968,65393.0,65390.0,0.001648]
[1728914677200,0.152926,65391.0,65390.0,0.001648]
[1728914679561,0.156926,65391.0,65390.0,0.001648]
[1728914680069,0.155926,65391.0,65390.0,0.001648]
[1728914680291,0.155966,65391.0,65390.0,0.001648]
[1728914680492,0.157966,65391.0,65390.0,0.001648]
[1728914680776,0.00504,65391.0,65390.0,0.001648]
[1728914681026,0.00504,65391.0,65390.0,0.58578169]
[1728914681297,0.00504,65391.0,65390.0,0.59348656]
[1728914682018,0.00504,65391.0,65390.0,0.33055485]
[1728914682244,0.00504,65391.0,65390.0,0.59348656]
[1728914682492,4e-05,65391.0,65390.0,0.59348656]
[1728914683232,4e-05,65391.0,65390.0,0.60152132]
[1728914683477,0.00104,65391.0,65390.0,0.69742132]
[1728914683695,0.00104,65391.0,65390.0,0.68938656]
[1728914683976,0.00104,65391.0,65390.0,0.41645485]
[1728914684216,0.00204,65391.0,65390.0,0.41145485]
[1728914684459,0.00204,65391.0,65390.0,0.33055485]
[1728914685806,0.00204,65391.0,65390.0,0.35337393]
[1728914686027,0.00204,65391.0,65390.0,0.36144548]
[1728914687665,0.00204,65391.0,65390.0,0.35337393]
[1728914688586,0.00204,65391.0,65390.0,0.33055485]
[1728914689514,0.00204,65391.0,65390.0,0.17762685]
[1728914689745,0.00204,65391.0,65390.0,0.16770685]
[1728914689977,0.00204,65391.0,65390.0,0.01417838]
[1728914690430,0.154966,65391.0,65390.0,0.01417838]
[1728914690877,0.153966,65391.0,65390.0,0.00647351]
[1728914691109,0.154966,65391.0,65390.0,0.01422362]
[1728914691571,0.00204,65391.0,65390.0,0.01422362]
[1728914691574,0.154966,65391.0,65390.0,0.01422362]
[1728914692037,0.153966,65391.0,65390.0,0.01422362]
[1728914692272,0.154966,65391.0,65390.0,0.01422362]
[1728914692505,0.153966,65391.0,65390.0,0.01422362]
[1728914692738,0.00104,65391.0,65381.0,0.28440951]
[1728914692987,0.152933,65388.0,65384.0,0.152941]
[1728914693209,0.152933,65388.0,65385.0,0.00775104]
[1728914693443,0.152933,65388.0,65386.0,0.00775104]
[1728914693681,0.152935,65387.0,65384.0,0.15352847]
[1728914693943,0.152933,65388.0,65385.0,0.00775186]
[1728914694184,4e-05,65391.0,65386.0,0.00775242]
[1728914694408,4e-05,65391.0,65386.0,0.15352847]
[1728914694632,4e-05,65391.0,65390.0,0.152928]
[1728914694869,4e-05,65391.0,65390.0,0.30645647]
[1728914695103,4e-05,65391.0,65390.0,0.1612784]
[1728914696295,4e-05,65391.0,65390.0,0.3142064]
[1728914696544,4e-05,65391.0,65390.0,0.00774993]
[1728914696786,4e-05,65391.0,65390.0,0.0077522]
[1728914697014,4e-05,65391.0,65387.0,0.152934]
[1728914697240,0.152931,65389.0,65388.0,0.00775374]
[1728914697521,4e-05,65391.0,65388.0,0.16128221]
[1728914697768,0.152929,65390.0,65388.0,0.15352847]
[1728914697994,0.152929,65390.0,65389.0,0.00775354]
[1728914698243,0.152929,65390.0,65380.0,0.001648]
[1728914698497,4e-05,65391.0,65381.0,0.16128341]
[1728914698745,0.305866,65388.0,65382.0,0.00775494]
[1728914698991,0.152949,65381.0,65380.0,0.001648]
[1728914699280,0.152947,65383.0,65380.0,0.15517647]
[1728914699508,0.152946,65383.0,65380.0,0.15517647]
[1728914699741,0.152947,65382.0,65380.0,0.15517647]
[1728914700225,0.001,65381.0,65380.0,0.15517647]
[1728914700722,0.153949,65381.0,65380.0,0.001648]
[1728914700967,0.152949,65381.0,65380.0,0.001648]
[1728914701696,0.30689,65383.0,65380.0,0.001648]
[1728914701697,0.001,65383.0,65380.0,0.001648]
[1728914701936,0.152945,65383.0,65380.0,0.001648]
[1728914702167,0.305858,65390.0,65381.0,0.15352847]
[1728914702168,0.001,65382.0,65381.0,0.15352847]
[1728914702402,0.001,65382.0,65381.0,0.30647747]
[1728914702889,0.001,65382.0,65380.0,0.001648]
[1728914702890,0.152949,65381.0,65380.0,0.001648]
[1728914704099,0.252949,65381.0,65380.0,0.001648]
[1728914704325,0.257949,65381.0,65380.0,0.001648]
[1728914705239,0.258949,65381.0,65380.0,0.001648]
[1728914705489,0.451149,65381.0,65380.0,0.001648]
[1728914705945,0.464149,65381.0,65380.0,0.001648]
[1728914706184,0.460149,65381.0,65380.0,0.001648]
[1728914706422,0.49014714,65381.0,65380.0,0.001648]
[1728914706644,0.50414714,65381.0,65380.0,0.001648]
[1728914706941,0.49014714,65381.0,65380.0,0.001648]
[1728914707179,0.50414714,65381.0,65380.0,0.001648]
[1728914707407,0.49214714,65381.0,65380.0,0.001648]
[1728914707644,0.82031612,65381.0,65380.0,0.001648]
[1728914707899,0.007,65375.0,65374.0,0.001646]
[1728914708140,1.00990318,65375.0,65374.0,0.001646]
[1728914708368,0.84462318,65375.0,65374.0,0.001646]
[1728914709065,0.84262318,65375.0,65374.0,0.001646]
[1728914709316,0.70742318,65375.0,65374.0,0.001646]
[1728914709549,0.72142318,65375.0,65374.0,0.001646]
[1728914709778,0.73542318,65375.0,65374.0,0.001646]
[1728914710024,0.73927654,65375.0,65374.0,0.001646]
[1728914711005,0.280963,65375.0,65374.0,0.001646]
[1728914711486,0.54389471,65375.0,65374.0,0.001646]
[1728914711703,0.52989471,65375.0,65374.0,0.001646]
[1728914711925,0.51589471,65375.0,65374.0,0.001646]
[1728914712141,0.54389471,65375.0,65374.0,0.001646]
[1728914712605,0.51589471,65375.0,65374.0,0.001646]
[1728914712854,0.52989471,65375.0,65374.0,0.001646]
[1728914713069,0.54389471,65375.0,65374.0,0.001646]
[1728914713782,0.77408139,65375.0,65374.0,0.001646]
[1728914714009,0.54889471,65375.0,65374.0,0.001646]
[1728914714780,0.74250901,65375.0,65374.0,0.001646]
[1728914715009,0.167982,65367.0,65366.0,0.00207]
[1728914715227,0.78334218,65367.0,65366.0,0.00207]
[1728914716390,0.79734218,65367.0,65366.0,0.00207]
[1728914718247,1.06416104,65367.0,65366.0,0.00207]
[1728914718488,1.07816104,65367.0,65366.0,0.00207]
[1728914719207,1.07816104,65367.0,65361.0,0.001648]
[1728914719208,0.54392571,65362.0,65361.0,0.001648]
[1728914719461,0.89873518,65362.0,65361.0,0.001648]
[1728914719694,0.86873518,65362.0,65361.0,0.001648]
[1728914720379,0.87873518,65362.0,65361.0,0.001648]
[1728914720850,0.70745418,65362.0,65361.0,0.001648]
[1728914721299,0.93631018,65362.0,65361.0,0.001648]
[1728914721524,0.96631609,65362.0,65361.0,0.001648]
[1728914722508,0.88666109,65362.0,65361.0,0.001648]
[1728914722740,0.48856838,65362.0,65361.0,0.001648]
[1728914722971,0.72850009,65362.0,65361.0,0.001648]
[1728914723659,0.57497162,65362.0,65361.0,0.001648]
[1728914723887,0.29703991,65362.0,65361.0,0.001648]
[1728914724119,0.281034,65362.0,65361.0,0.001648]
[1728914724838,0.181034,65362.0,65361.0,0.001648]
[1728914725070,0.153034,65362.0,65361.0,0.001648]
[1728914725303,0.181034,65362.0,65361.0,0.001648]
[1728914725536,0.181034,65362.0,65361.0,0.23247647]
[1728914725537,0.01404,65362.0,65361.0,0.23247647]
[1728914725761,4e-05,65362.0,65361.0,0.23247647]
[1728914726025,0.161034,65362.0,65361.0,0.23247647]
[1728914726250,0.161034,65362.0,65361.0,0.001648]
[1728914726707,0.166034,65362.0,65361.0,0.001648]
[1728914726936,0.266034,65362.0,65361.0,0.001648]
[1728914727169,0.253034,65362.0,65361.0,0.001648]
[1728914727632,0.27052846,65362.0,65361.0,0.001648]
[1728914727863,0.42405693,65362.0,65361.0,0.001648]
[1728914728090,0.005,65359.0,65354.0,0.001646]
[1728914728311,0.52094171,65355.0,65354.0,0.001646]
[1728914728544,0.60374171,65355.0,65354.0,0.001646]
[1728914728779,0.61374171,65355.0,65354.0,0.001646]
[1728914729228,0.79027018,65355.0,65354.0,0.001646]
[1728914729460,0.79227018,65355.0,65354.0,0.001646]
[1728914729801,0.80427018,65355.0,65354.0,0.001646]
[1728914730596,0.54494171,65355.0,65354.0,0.001646]
[1728914730854,0.53494171,65355.0,65354.0,0.001646]
[1728914731081,0.54894171,65355.0,65354.0,0.001646]
[1728914731547,0.96565686,65355.0,65354.0,0.001646]
[1728914731784,0.73547018,65355.0,65354.0,0.001646]
[1728914733668,0.47253847,65355.0,65354.0,0.001646]
[1728914733945,0.73547018,65355.0,65354.0,0.001646]
[1728914736074,0.55894171,65355.0,65354.0,0.001646]
[1728914736765,0.28101,65355.0,65354.0,0.001646]
[1728914737251,0.54394171,65355.0,65354.0,0.001646]
[1728914737833,0.28101,65355.0,65354.0,0.001646]
[1728914738077,0.028,65355.0,65354.0,0.001646]
[1728914738321,0.18101,65355.0,65354.0,0.001646]
[1728914738812,0.16701,65355.0,65354.0,0.001646]
[1728914739053,0.15301,65355.0,65354.0,0.001646]
[1728914739288,0.25301,65355.0,65354.0,0.001646]
[1728914740021,0.26401,65355.0,65354.0,0.001646]
[1728914740297,0.26701,65355.0,65354.0,0.001646]
[1728914740558,0.27301,65355.0,65354.0,0.001646]
[1728914740794,0.25901,65355.0,65354.0,0.001646]
[1728914741288,0.26401,65355.0,65354.0,0.001646]
[1728914742268,0.44553847,65355.0,65354.0,0.001646]
[1728914742750,0.43953847,65355.0,65354.0,0.001646]
[1728914743222,0.44853847,65355.0,65354.0,0.001646]
[1728914743461,0.43453847,65355.0,65354.0,0.001646]
[1728914743693,0.4553712,65355.0,65354.0,0.001646]
[1728914743956,0.53773847,65355.0,65354.0,0.001646]
[1728914744219,0.53773847,65355.0,65338.0,0.003538]
[1728914744220,0.52096771,65344.0,65338.0,0.003538]
[1728914744467,0.70749618,65344.0,65338.0,0.003538]
[1728914746203,0.51596771,65344.0,65338.0,0.003538]
[1728914746682,0.52996771,65344.0,65338.0,0.003538]
[1728914746934,0.52996771,65344.0,65338.0,0.156588]
[1728914746935,0.54396771,65344.0,65338.0,0.156588]
[1728914747172,0.54396771,65344.0,65338.0,0.003538]
[1728914747173,0.128,65344.0,65338.0,0.003538]
[1728914747425,0.306025,65355.0,65341.0,0.306085]
[1728914747660,0.23018668,65354.0,65346.0,0.306061]
[1728914747909,0.23018668,65354.0,65348.0,0.30605]
[1728914748156,0.23018668,65354.0,65350.0,0.153021]
[1728914748418,0.306012,65357.0,65348.0,0.306053]
[1728914748649,0.153017,65353.0,65348.0,0.153026]
[1728914748902,0.153014,65354.0,65350.0,0.153021]
[1728914749169,0.000825,65361.0,65351.0,0.15352847]
[1728914749387,0.000825,65361.0,65350.0,0.116]
[1728914749388,0.23018668,65353.0,65350.0,0.116]
[1728914749620,0.53618568,65360.0,65343.0,0.307719]
[1728914749621,0.014,65354.0,65345.0,0.0077225]
[1728914749848,0.153026,65349.0,65346.0,0.00482698]
[1728914750078,0.153026,65349.0,65343.0,0.001644]
[1728914750079,0.153026,65349.0,65344.0,0.153034]
[1728914750347,0.153031,65347.0,65343.0,0.154682]